bitfinex-derivatives/quotes_BTCF0:USTF0_20241005
["timestamp","ask_amount","ask_price","bid_price","bid_amount"]
[1728107573126,0.0344,62152.0,62151.0,0.126311]
[1728107573635,0.0344,62152.0,62151.0,0.487111]
[1728107576022,0.0344,62152.0,62151.0,0.126311]
[1728107576631,0.0344,62152.0,62151.0,0.487111]
[1728107578336,0.0344,62152.0,62151.0,0.126311]
[1728107578536,0.0344,62152.0,62151.0,0.487111]
[1728107582938,0.26789604,62152.0,62151.0,0.487111]
[1728107583129,0.12318394,62152.0,62151.0,0.487111]
[1728107584033,0.26789604,62152.0,62151.0,0.126311]
[1728107584234,0.26789604,62152.0,62151.0,0.487111]
[1728107584630,0.26789618,62152.0,62151.0,0.487111]
[1728107585133,0.26789618,62152.0,62151.0,0.126311]
[1728107585331,0.26789618,62152.0,62151.0,0.487111]
[1728107587441,0.12318408,62152.0,62151.0,0.487111]
[1728107588829,0.26789618,62152.0,62151.0,0.487111]
[1728107589743,0.26789604,62152.0,62151.0,0.487111]
[1728107591041,0.0344,62152.0,62151.0,0.487111]
[1728107592844,0.0344,62152.0,62151.0,0.126311]
[1728107593056,0.0344,62152.0,62151.0,0.487111]
[1728107597055,0.0344,62152.0,62151.0,0.126311]
[1728107597247,0.0344,62152.0,62151.0,0.487111]
[1728107598044,0.12318397,62152.0,62151.0,0.126311]
[1728107598347,0.1791121,62152.0,62151.0,0.487111]
[1728107598543,0.12318397,62152.0,62151.0,0.487111]
[1728107599546,0.26789607,62152.0,62151.0,0.126311]
[1728107599756,0.26789607,62152.0,62151.0,0.487111]
[1728107599951,0.07379944,62152.0,62151.0,0.487111]
[1728107601847,0.12318382,62152.0,62151.0,0.126311]
[1728107602050,0.26789592,62152.0,62151.0,0.487111]
[1728107602658,0.12318382,62152.0,62151.0,0.487111]
[1728107602861,0.12318382,62152.0,62151.0,0.126311]
[1728107603057,0.12318382,62152.0,62151.0,0.487111]
[1728107604348,0.12318307,62152.0,62151.0,0.487111]
[1728107604550,0.12318307,62152.0,62151.0,0.126311]
[1728107604852,0.12318307,62152.0,62151.0,0.487111]
[1728107605052,0.12318307,62152.0,62151.0,0.126311]
[1728107605250,0.12318307,62152.0,62151.0,0.487111]
[1728107605857,0.09178307,62152.0,62151.0,0.487111]
[1728107606054,0.003,62152.0,62151.0,0.5512179]
[1728107607061,0.003,62152.0,62151.0,0.487111]
[1728107608857,0.003,62152.0,62151.0,0.417111]
[1728107609056,0.003,62152.0,62151.0,0.487111]
[1728107610256,0.003,62152.0,62151.0,0.55122855]
[1728107612361,0.003,62152.0,62151.0,0.55121998]
[1728107612960,0.003,62152.0,62151.0,0.19041998]
[1728107613164,0.04239742,62152.0,62151.0,0.487111]
[1728107615160,0.04239742,62152.0,62151.0,0.126311]
[1728107615365,0.04239742,62152.0,62151.0,0.487111]
[1728107616267,0.04239742,62152.0,62151.0,0.126311]
[1728107616470,0.04239742,62152.0,62151.0,0.487111]
[1728107617370,0.04239742,62152.0,62151.0,0.126311]
[1728107617559,0.04239742,62152.0,62151.0,0.487111]
[1728107618267,0.04239742,62152.0,62151.0,0.126311]
[1728107618471,0.04239742,62152.0,62151.0,0.487111]
[1728107620076,0.04239742,62152.0,62151.0,0.126311]
[1728107620260,0.04239742,62152.0,62151.0,0.487111]
[1728107621075,0.003,62152.0,62151.0,0.487111]
[1728107621263,0.003,62152.0,62151.0,0.126311]
[1728107621771,0.003,62152.0,62151.0,0.487111]
[1728107624661,0.0317,62154.0,62153.0,0.056309]
[1728107624862,0.031,62156.0,62155.0,0.056308]
[1728107625067,0.031,62156.0,62155.0,0.17434504]
[1728107625269,0.031,62156.0,62155.0,0.126308]
[1728107625473,0.031,62156.0,62155.0,0.17434504]
[1728107625673,0.0112,62158.0,62157.0,0.056306]
[1728107625880,0.0112,62161.0,62160.0,0.056303]
[1728107626071,0.0443,62164.0,62163.0,0.0563]
[1728107626266,0.0331,62164.0,62163.0,0.1263]
[1728107627274,0.0331,62164.0,62163.0,0.1273]
[1728107627468,0.0331,62164.0,62163.0,0.1283]
[1728107627977,0.0637,62164.0,62163.0,0.1283]
[1728107628571,0.0637,62164.0,62163.0,0.4891]
[1728107632275,0.0637,62164.0,62163.0,0.50743831]
[1728107635067,0.15246837,62164.0,62163.0,0.50743831]
[1728107635667,0.15246837,62164.0,62163.0,0.14663831]
[1728107635870,0.15246837,62164.0,62163.0,0.50743831]
[1728107636278,0.31347887,62164.0,62163.0,0.50743831]
[1728107637175,0.31347887,62164.0,62163.0,0.14663831]
[1728107637484,0.31347887,62164.0,62163.0,0.50743831]
[1728107637686,0.15246837,62164.0,62163.0,0.50743831]
[1728107639286,0.15246814,62164.0,62163.0,0.50743831]
[1728107640487,0.29709695,62164.0,62163.0,0.50743831]
[1728107640780,0.29709695,62164.0,62163.0,0.14663831]
[1728107640975,0.29709695,62164.0,62163.0,0.50743831]
[1728107642882,0.15246814,62164.0,62163.0,0.50743831]
[1728107643083,0.29709695,62164.0,62163.0,0.50743831]
[1728107643297,0.0637,62164.0,62163.0,0.50743831]
[1728107643977,0.0331,62164.0,62163.0,0.50743831]
[1728107644792,0.0331,62164.0,62163.0,0.86823831]
[1728107645586,0.0112,62168.0,62163.0,0.86823831]
[1728107645890,0.0112,62168.0,62167.0,0.126297]
[1728107646090,0.0959,62171.0,62170.0,0.056294]
[1728107646292,0.0959,62171.0,62170.0,0.126294]
[1728107647584,0.0959,62171.0,62170.0,0.127294]
[1728107648393,0.0959,62171.0,62170.0,0.488094]
[1728107648684,0.0959,62171.0,62170.0,0.489094]
[1728107649179,0.0637,62171.0,62170.0,0.489094]
[1728107650199,0.10308637,62171.0,62170.0,0.489094]
[1728107651199,0.0112,62175.0,62174.0,0.05629]
[1728107651386,0.0358,62179.0,62174.0,0.05629]
[1728107651387,0.0112,62178.0,62177.0,0.056288]
[1728107651587,0.0321,62179.0,62178.0,0.056287]
[1728107652095,0.0321,62179.0,62178.0,0.417087]
[1728107652289,0.0112,62181.0,62180.0,0.056285]
[1728107652588,0.0112,62181.0,62180.0,0.126285]
[1728107653597,0.0112,62181.0,62180.0,0.127285]
[1728107654988,0.0112,62181.0,62180.0,1.209765]
[1728107655193,0.0112,62181.0,62180.0,1.210765]
[1728107656992,0.0112,62181.0,62180.0,1.209765]
[1728107657295,0.0112,62181.0,62180.0,1.208765]
[1728107657296,0.0122,62181.0,62180.0,1.208765]
[1728107658289,0.0303,62191.0,62185.0,0.05628]
[1728107658490,0.034,62191.0,62190.0,0.056276]
[1728107658697,0.0303,62191.0,62190.0,0.126276]
[1728107660005,0.0303,62191.0,62190.0,0.127276]
[1728107661401,0.0303,62191.0,62190.0,0.848876]
[1728107662104,0.0303,62191.0,62190.0,0.849876]
[1728107665110,0.0303,62191.0,62190.0,0.86809694]
[1728107666808,0.0303,62191.0,62190.0,0.79809694]
[1728107666998,0.0303,62191.0,62190.0,0.74182094]
[1728107666999,0.186675,62191.0,62190.0,0.74182094]
[1728107667605,0.186675,62191.0,62190.0,0.02022094]
[1728107667914,0.186675,62191.0,62186.0,0.056279]
[1728107667915,0.056277,62190.0,62186.0,0.056279]
[1728107668608,0.07,62188.0,62186.0,0.056279]
[1728107668808,0.126278,62188.0,62186.0,0.056279]
[1728107669003,0.126278,62188.0,62186.0,0.07515347]
[1728107669203,0.126278,62188.0,62186.0,0.07615347]
[1728107669602,0.126278,62188.0,62186.0,0.07715347]
[1728107670000,0.0604,62191.0,62187.0,0.07]
[1728107670314,0.116675,62191.0,62187.0,0.07]
[1728107671214,0.116675,62191.0,62187.0,0.071]
[1728107671215,0.117675,62191.0,62187.0,0.071]
[1728107671899,0.117675,62191.0,62187.0,0.072]
[1728107672119,0.117675,62191.0,62188.0,0.3608]
[1728107673305,0.14462881,62189.0,62188.0,0.3618]
[1728107673507,0.233362,62189.0,62188.0,0.3618]
[1728107674412,0.08873319,62189.0,62188.0,0.3618]
[1728107674603,0.08873319,62189.0,62188.0,0.3628]
[1728107676516,0.08873317,62189.0,62188.0,0.3628]
[1728107677113,0.1610105,62189.0,62188.0,0.3628]
[1728107677310,0.08873317,62189.0,62188.0,0.3628]
[1728107677918,0.08873317,62189.0,62188.0,0.002]
[1728107678215,0.08873317,62189.0,62188.0,0.3628]
[1728107680320,0.126276,62190.0,62188.0,0.419078]
[1728107685621,0.056276,62190.0,62188.0,0.419078]
[1728107688320,0.088735,62189.0,62188.0,0.419078]
[1728107690824,0.088735,62189.0,62188.0,0.489078]
[1728107693027,0.14460116,62189.0,62188.0,0.489078]
[1728107693223,0.088735,62189.0,62188.0,0.489078]
[1728107693422,0.14460116,62189.0,62188.0,0.489078]
[1728107694423,0.088735,62189.0,62188.0,0.489078]
[1728107695034,0.088735,62189.0,62188.0,0.3628]
[1728107695333,0.056276,62190.0,62188.0,0.3628]
[1728107695722,0.056276,62190.0,62188.0,0.419078]
[1728107697229,0.056276,62190.0,62189.0,0.056277]
[1728107697440,0.0956532,62190.0,62189.0,0.056277]
[1728107699636,0.0956532,62190.0,62189.0,0.057277]
[1728107700136,0.0956532,62190.0,62189.0,0.058277]
[1728107701633,0.1656532,62190.0,62189.0,0.058277]
[1728107703330,0.21501062,62190.0,62189.0,0.058277]
[1728107703935,0.14501062,62190.0,62189.0,0.058277]
[1728107704531,0.14501154,62190.0,62189.0,0.058277]
[1728107710544,0.09565395,62190.0,62189.0,0.058277]
[1728107711247,0.056276,62190.0,62189.0,0.058277]
[1728107713140,0.056276,62190.0,62189.0,0.002]
[1728107714842,0.056276,62190.0,62189.0,0.3628]
[1728107718347,0.09565371,62190.0,62189.0,0.3628]
[1728107718754,0.09565371,62190.0,62189.0,0.002]
[1728107719746,0.09565371,62190.0,62189.0,0.3628]
[1728107721451,0.1184937,62190.0,62189.0,0.3628]
[1728107721950,0.1184937,62190.0,62189.0,0.002]
[1728107722145,0.1184937,62190.0,62189.0,0.3628]
[1728107723049,0.1184937,62190.0,62185.0,0.0112]
[1728107723050,0.056279,62186.0,62185.0,0.0112]
[1728107723250,0.056279,62186.0,62181.0,0.3645]
[1728107723251,0.056282,62183.0,62181.0,0.431983]
[1728107723547,0.056283,62182.0,62181.0,0.417923]
[1728107723747,0.19616071,62182.0,62181.0,0.417083]
[1728107724346,0.19616572,62182.0,62181.0,0.417083]
[1728107725444,0.24552923,62182.0,62181.0,0.417083]
[1728107726159,0.24652923,62182.0,62181.0,0.417083]
[1728107727750,0.24652923,62182.0,62181.0,0.43984437]
[1728107728755,0.24652923,62182.0,62181.0,0.07904437]
[1728107730151,0.24652923,62182.0,62181.0,0.02276137]
[1728107730350,0.19024623,62182.0,62178.0,0.428287]
[1728107730553,0.17675302,62179.0,62178.0,0.428287]
[1728107730758,0.17675302,62179.0,62178.0,0.417087]
[1728107730959,0.26549925,62179.0,62178.0,0.44049421]
[1728107731261,0.35240253,62179.0,62178.0,0.38420721]
[1728107731557,0.21503223,62179.0,62178.0,0.38420721]
[1728107732256,0.21503223,62179.0,62178.0,0.3608]
[1728107732945,0.21603223,62179.0,62178.0,0.3608]
[1728107733653,0.127286,62179.0,62178.0,0.3608]
[1728107734556,0.16667366,62179.0,62178.0,0.3608]
[1728107734761,0.127286,62179.0,62178.0,0.3608]
[1728107740556,0.30395303,62179.0,62178.0,0.3608]
[1728107740768,0.39271058,62179.0,62178.0,0.3608]
[1728107741565,0.27373181,62179.0,62178.0,0.3608]
[1728107741766,0.21604355,62179.0,62178.0,0.3608]
[1728107742556,0.30378798,62179.0,62178.0,0.3608]
[1728107742768,0.39254553,62179.0,62178.0,0.3608]
[1728107743557,0.27373181,62179.0,62178.0,0.3608]
[1728107743761,0.21604355,62179.0,62178.0,0.3608]
[1728107748666,0.127286,62179.0,62178.0,0.3608]
[1728107750470,0.16667362,62179.0,62178.0,0.3608]
[1728107750866,0.11038762,62179.0,62174.0,0.0112]
[1728107751075,0.126289,62175.0,62174.0,0.0112]
[1728107751264,0.126289,62175.0,62173.0,0.3608]
[1728107752163,0.126289,62175.0,62174.0,0.004]
[1728107752767,0.126289,62175.0,62174.0,0.007]
[1728107752977,0.126289,62175.0,62174.0,0.003]
[1728107753274,0.126289,62175.0,62173.0,0.3658]
[1728107753479,0.126289,62175.0,62174.0,0.003]
[1728107754577,0.126289,62175.0,62174.0,0.007]
[1728107755774,0.126289,62175.0,62174.0,0.004]
[1728107756473,0.126289,62175.0,62174.0,0.007]
[1728107760175,0.056289,62175.0,62174.0,0.007]
[1728107763571,0.09567632,62175.0,62174.0,0.007]
[1728107764080,0.14504566,62175.0,62174.0,0.007]
[1728107767489,0.14504565,62175.0,62174.0,0.007]
[1728107768280,0.32162373,62175.0,62174.0,0.007]
[1728107769477,0.14504565,62175.0,62174.0,0.007]
[1728107770680,0.056289,62175.0,62174.0,0.007]
[1728107771578,0.126289,62175.0,62174.0,0.007]
[1728107778684,0.16567702,62175.0,62174.0,0.007]
[1728107783296,0.21504633,62175.0,62174.0,0.007]
[1728107785490,0.39162441,62175.0,62174.0,0.007]
[1728107785698,0.056289,62175.0,62174.0,0.007]
[1728107793988,0.14504732,62175.0,62174.0,0.007]
[1728107794894,0.23324543,62175.0,62174.0,0.007]
[1728107795095,0.32200375,62175.0,62174.0,0.007]
[1728107795998,0.14504732,62175.0,62174.0,0.007]
[1728107796199,0.32200375,62175.0,62174.0,0.007]
[1728107796596,0.23324543,62175.0,62174.0,0.007]
[1728107796900,0.27263225,62175.0,62174.0,0.007]
[1728107797203,0.23324543,62175.0,62174.0,0.007]
[1728107798798,0.27263232,62175.0,62174.0,0.007]
[1728107799900,0.32200111,62175.0,62174.0,0.007]
[1728107800603,0.23324543,62175.0,62174.0,0.007]
[1728107804107,0.34263324,62175.0,62174.0,0.007]
[1728107804307,0.5156984,62175.0,62174.0,0.007]
[1728107805006,0.42694065,62175.0,62174.0,0.007]
[1728107805703,0.24998422,62175.0,62174.0,0.007]
[1728107807805,0.34709014,62175.0,62174.0,0.007]
[1728107809302,0.056291,62173.0,62172.0,0.11025776]
[1728107809506,0.056291,62173.0,62171.0,0.07994838]
[1728107809712,0.0319,62172.0,62171.0,0.07994838]
[1728107810200,0.088192,62172.0,62171.0,0.07994838]
[1728107810396,0.158192,62172.0,62171.0,0.07994838]
[1728107810710,0.158192,62172.0,62171.0,0.08694838]
[1728107811104,0.158192,62172.0,62171.0,0.03765538]
[1728107812607,0.158192,62172.0,62171.0,0.03665538]
[1728107814416,0.20756297,62172.0,62171.0,0.03665538]
[1728107815805,0.36846168,62172.0,62171.0,0.03665538]
[1728107816516,0.31909071,62172.0,62171.0,0.03665538]
[1728107816710,0.158192,62172.0,62171.0,0.03665538]
[1728107818807,0.158192,62172.0,62165.0,0.05086534]
[1728107819003,0.07,62171.0,62160.0,0.16598766]
[1728107819216,0.07,62170.0,62167.0,0.056296]
[1728107819421,0.3608,62168.0,62167.0,0.056296]
[1728107819917,0.3608,62168.0,62165.0,0.07]
[1728107820114,0.3608,62167.0,62165.0,0.012]
[1728107820320,0.3608,62167.0,62166.0,0.056298]
[1728107821518,0.38595205,62167.0,62166.0,0.068298]
[1728107821919,0.43590802,62167.0,62164.0,0.07]
[1728107822218,0.43590802,62167.0,62166.0,0.056298]
[1728107823018,0.43590802,62167.0,62154.0,0.3608]
[1728107823221,0.43690802,62167.0,62166.0,0.011]
[1728107823412,0.43690802,62167.0,62166.0,0.067298]
[1728107823909,0.43690802,62167.0,62148.0,0.98779]
[1728107823910,0.43790802,62167.0,62148.0,0.98779]
[1728107824110,0.43790802,62167.0,62154.0,0.013]
[1728107824311,0.38795205,62167.0,62166.0,0.01]
[1728107824524,0.42734283,62167.0,62166.0,0.01]
[1728107824723,0.38795205,62167.0,62166.0,0.01]
[1728107825114,0.42734254,62167.0,62166.0,0.01]
[1728107825315,0.49734254,62167.0,62166.0,0.01]
[1728107825619,0.49734254,62167.0,62166.0,0.066298]
[1728107826329,0.49734254,62167.0,62166.0,0.06866821]
[1728107827320,0.13654254,62167.0,62166.0,0.06866821]
[1728107827522,0.49734254,62167.0,62166.0,0.06866821]
[1728107828217,0.47219049,62167.0,62166.0,0.06866821]
[1728107829923,0.47219049,62167.0,62166.0,0.09177884]
[1728107830522,0.47219061,62167.0,62166.0,0.09177884]
[1728107830912,0.40219061,62167.0,62166.0,0.09177884]
[1728107831516,0.3628,62167.0,62166.0,0.09177884]
[1728107832430,0.002,62167.0,62166.0,0.09177884]
[1728107832630,0.3628,62167.0,62166.0,0.09177884]
[1728107837619,0.002,62167.0,62166.0,0.09177884]
[1728107838020,0.3628,62167.0,62166.0,0.09177884]
[1728107843719,0.3628,62167.0,62166.0,0.1169301]
[1728107844024,0.3628,62167.0,62166.0,0.09177884]
[1728107844424,0.3628,62167.0,62166.0,0.11693022]
[1728107844735,0.3628,62167.0,62166.0,0.18693022]
[1728107845125,0.3628,62167.0,62166.0,0.30950421]
[1728107845626,0.3628,62167.0,62166.0,0.30950375]
[1728107846427,0.3628,62167.0,62166.0,0.30950287]
[1728107846623,0.3628,62167.0,62166.0,0.18692934]
[1728107846827,0.3628,62167.0,62166.0,0.2120798]
[1728107847020,0.3628,62167.0,62166.0,0.1869293]
[1728107847627,0.002,62167.0,62166.0,0.1869293]
[1728107847828,0.3628,62167.0,62166.0,0.1869293]
[1728107849034,0.3628,62167.0,62166.0,0.16177884]
[1728107853736,0.002,62167.0,62166.0,0.16177884]
[1728107853932,0.3628,62167.0,62166.0,0.16177884]
[1728107854838,0.3628,62167.0,62166.0,0.36476951]
[1728107855639,0.3628,62167.0,62166.0,0.24219706]
[1728107856438,0.3628,62167.0,62166.0,0.36477008]
[1728107856639,0.3628,62167.0,62166.0,0.24219706]
[1728107856940,0.3628,62167.0,62166.0,0.36476964]
[1728107857138,0.3628,62167.0,62166.0,0.26734735]
[1728107857845,0.3628,62167.0,62166.0,0.26734749]
[1728107858234,0.3628,62167.0,62166.0,0.24219706]
[1728107858538,0.3628,62167.0,62166.0,0.26734749]
[1728107858740,0.3628,62167.0,62166.0,0.38992062]
[1728107859137,0.3628,62167.0,62166.0,0.36477019]
[1728107859738,0.3628,62167.0,62166.0,0.38992049]
[1728107859939,0.3628,62167.0,62166.0,0.36477019]
[1728107860335,0.3628,62167.0,62166.0,0.18692917]
[1728107860829,0.3628,62167.0,62166.0,0.26734739]
[1728107861536,0.3628,62167.0,62166.0,0.36476766]
[1728107861729,0.3628,62167.0,62166.0,0.18692875]
[1728107862539,0.0112,62171.0,62170.0,0.056294]
[1728107862740,0.0319,62172.0,62171.0,0.056293]
[1728107862937,0.0319,62172.0,62171.0,1.31991656]
[1728107863241,0.0319,62172.0,62171.0,1.27968118]
[1728107863942,0.0329,62172.0,62171.0,1.27968118]
[1728107864143,0.0329,62172.0,62171.0,1.25453127]
[1728107865041,0.0329,62172.0,62171.0,1.138853]
[1728107865242,0.0329,62172.0,62171.0,1.25452897]
[1728107865439,0.0329,62172.0,62171.0,1.20423507]
[1728107865636,0.0339,62172.0,62171.0,0.12667507]
[1728107868045,0.0339,62172.0,62171.0,0.061293]
[1728107884657,0.0339,62172.0,62171.0,0.12550565]
[1728107886659,0.0339,62172.0,62171.0,0.17697012]
[1728107887251,0.0339,62172.0,62171.0,0.12667572]
[1728107890652,0.0339,62172.0,62171.0,0.20709394]
[1728107891058,0.0339,62172.0,62171.0,0.32965036]
[1728107891454,0.0339,62172.0,62171.0,0.24923214]
[1728107891651,0.0339,62172.0,62171.0,0.12667572]
[1728107891953,0.0339,62172.0,62171.0,0.061293]
[1728107892261,0.0339,62172.0,62171.0,0.12667473]
[1728107894253,0.0339,62172.0,62171.0,0.17696833]
[1728107895462,0.0339,62172.0,62171.0,0.061293]
[1728107895665,0.0339,62172.0,62171.0,0.15182148]
[1728107895962,0.0339,62172.0,62171.0,0.17696828]
[1728107898261,0.0339,62172.0,62171.0,0.15182148]
[1728107898461,0.0339,62172.0,62171.0,0.0864398]
[1728107899272,0.0339,62172.0,62171.0,0.08644036]
[1728107906667,0.0339,62172.0,62171.0,0.061293]
[1728107907367,0.0339,62172.0,62171.0,0.08644035]
[1728107908263,0.0339,62172.0,62171.0,0.43014988]
[1728107909265,0.0339,62172.0,62171.0,0.40504328]
[1728107909466,0.0339,62172.0,62171.0,0.37989593]
[1728107910062,0.0339,62172.0,62171.0,0.2642193]
[1728107910258,0.0339,62172.0,62171.0,0.32960189]
[1728107910571,0.0339,62172.0,62171.0,0.131293]
[1728107911270,0.0339,62172.0,62171.0,0.21166167]
[1728107911570,0.0339,62172.0,62171.0,0.33421922]
[1728107911767,0.0339,62172.0,62171.0,0.3695217]
[1728107911980,0.0339,62172.0,62171.0,0.44990532]
[1728107912266,0.0339,62172.0,62171.0,0.33423073]
[1728107912457,0.0339,62172.0,62171.0,0.36952803]
[1728107912664,0.0339,62172.0,62171.0,0.33422716]
[1728107912869,0.0339,62172.0,62171.0,0.131293]
[1728107913371,0.0339,62172.0,62171.0,0.21166816]
[1728107914171,0.0339,62172.0,62171.0,0.3342256]
[1728107914369,0.0339,62172.0,62171.0,0.131293]
[1728107916476,0.0339,62172.0,62171.0,0.15644049]
[1728107916872,0.0339,62172.0,62171.0,0.131293]
[1728107917476,0.0339,62172.0,62171.0,0.1564406]
[1728107919083,0.3947,62172.0,62171.0,0.1564406]
[1728107923573,0.0339,62172.0,62171.0,0.1564406]
[1728107923781,0.3947,62172.0,62171.0,0.1564406]
[1728107924176,0.3947,62172.0,62171.0,0.15644071]
[1728107924681,0.3947,62172.0,62171.0,0.131293]
[1728107924882,0.0339,62172.0,62171.0,0.131293]
[1728107925083,0.3947,62172.0,62171.0,0.131293]
[1728107925872,0.0339,62172.0,62171.0,0.131293]
[1728107926470,0.0339,62172.0,62171.0,0.21166816]
[1728107926471,0.3947,62172.0,62171.0,0.21166816]
[1728107926778,0.0339,62172.0,62171.0,0.21166816]
[1728107926977,0.3947,62172.0,62171.0,0.21166816]
[1728107927284,0.0339,62172.0,62171.0,0.21166816]
[1728107927777,0.3947,62172.0,62171.0,0.21166816]
[1728107928385,0.0339,62172.0,62171.0,0.21166816]
[1728107928778,0.3947,62172.0,62171.0,0.21166816]
[1728107930587,0.0339,62172.0,62171.0,0.21166816]
[1728107930888,0.3947,62172.0,62171.0,0.21166816]
[1728107931593,0.3947,62172.0,62171.0,0.23681587]
[1728107931783,0.3947,62172.0,62171.0,0.131293]
[1728107932177,0.3947,62172.0,62171.0,0.23681587]
[1728107933786,0.3947,62172.0,62171.0,0.16681587]
[1728107934487,0.0339,62172.0,62171.0,0.16681587]
[1728107934681,0.0339,62172.0,62171.0,0.14166816]
[1728107934887,0.3947,62172.0,62171.0,0.14166816]
[1728107935284,0.3947,62172.0,62171.0,0.16681587]
[1728107935691,0.3947,62172.0,62171.0,0.061293]
[1728107936191,0.3947,62172.0,62171.0,0.16681587]
[1728107936589,0.0339,62172.0,62171.0,0.16681587]
[1728107936988,0.3947,62172.0,62171.0,0.08644071]
[1728107937393,0.0339,62172.0,62171.0,0.08644071]
[1728107937592,0.3947,62172.0,62171.0,0.08644071]
[1728107939791,0.3947,62172.0,62171.0,0.061293]
[1728107942107,0.0339,62172.0,62171.0,0.061293]
[1728107942407,0.3947,62172.0,62171.0,0.061293]
[1728107942610,0.0339,62172.0,62171.0,0.061293]
[1728107942910,0.3947,62172.0,62171.0,0.061293]
[1728107944908,0.3947,62172.0,62171.0,0.26422804]
[1728107945112,0.34853163,62172.0,62171.0,0.26422804]
[1728107946813,0.34853163,62172.0,62171.0,0.264228]
[1728107948008,0.34853163,62172.0,62171.0,0.18385284]
[1728107948307,0.0112,62175.0,62171.0,0.18385284]
[1728107948512,0.0112,62175.0,62174.0,0.12629]
[1728107948708,0.0309,62178.0,62174.0,0.12629]
[1728107948912,0.0309,62178.0,62177.0,0.07]
[1728107949611,0.3917,62178.0,62177.0,0.07]
[1728107950521,0.4233,62178.0,62177.0,0.07]
[1728107951017,0.4263,62178.0,62177.0,0.07]
[1728107951518,0.4273,62178.0,62177.0,0.07]
[1728107951911,0.46668357,62178.0,62177.0,0.07]
[1728107956221,0.46668357,62178.0,62177.0,0.09258916]
[1728107957118,0.10588357,62178.0,62177.0,0.09258916]
[1728107957314,0.46668357,62178.0,62177.0,0.09258916]
[1728107958021,0.10588357,62178.0,62177.0,0.09258916]
[1728107958815,0.46668357,62178.0,62177.0,0.09258916]
[1728107959213,0.10588357,62178.0,62177.0,0.09258916]
[1728107959419,0.46668357,62178.0,62177.0,0.09258916]
[1728107959927,0.4273,62178.0,62177.0,0.09258916]
[1728107960117,0.0665,62178.0,62177.0,0.09258916]
[1728107960318,0.4273,62178.0,62177.0,0.09258916]
[1728107960621,0.0665,62178.0,62177.0,0.09258916]
[1728107960820,0.4273,62178.0,62177.0,0.09258916]
[1728107963314,0.0665,62178.0,62177.0,0.09258916]
[1728107963709,0.4973,62178.0,62177.0,0.02258916]
[1728107963914,0.553587,62178.0,62175.0,0.06428399]
[1728107964920,0.553587,62178.0,62175.0,0.08786264]
[1728107965121,0.552587,62178.0,62175.0,0.08886264]
[1728107965527,0.191787,62178.0,62175.0,0.08886264]
[1728107965716,0.3608,62176.0,62175.0,0.08886264]
[1728107966526,0.189787,62178.0,62175.0,0.08886264]
[1728107966712,0.3608,62176.0,62175.0,0.08886264]
[1728107966917,0.3618,62176.0,62175.0,0.02457865]
[1728107971830,0.001,62176.0,62175.0,0.02457865]
[1728107972228,0.3618,62176.0,62175.0,0.02457865]
[1728107972529,0.001,62176.0,62175.0,0.02457865]
[1728107972725,0.3618,62176.0,62175.0,0.02457865]
[1728107973417,0.001,62176.0,62175.0,0.02457865]
[1728107973618,0.3618,62176.0,62175.0,0.02457865]
[1728107975125,0.001,62176.0,62175.0,0.02457865]
[1728107975325,0.3618,62176.0,62175.0,0.08086765]
[1728107978825,0.001,62176.0,62175.0,0.08086765]
[1728107979224,0.3618,62176.0,62175.0,0.08086765]
[1728107979625,0.3618,62176.0,62175.0,0.02457865]
[1728107991039,0.001,62176.0,62175.0,0.02457865]
[1728107991246,0.3618,62176.0,62175.0,0.02457865]
[1728107992143,0.001,62176.0,62175.0,0.02457865]
[1728107992333,0.3618,62176.0,62175.0,0.02457865]
[1728107992535,0.001,62176.0,62175.0,0.02457865]
[1728107992734,0.3618,62176.0,62175.0,0.02457865]
[1728107998640,0.3618,62176.0,62175.0,0.07276888]
[1728107998844,0.3618,62176.0,62175.0,0.12905788]
[1728107999038,0.3618,62176.0,62175.0,0.17601548]
[1728107999443,0.3618,62176.0,62175.0,0.37203931]
[1728107999738,0.3618,62176.0,62175.0,0.37198766]
[1728108000137,0.3618,62176.0,62175.0,0.34689148]
[1728108000339,0.3618,62176.0,62175.0,0.26653646]
[1728108004448,0.001,62176.0,62175.0,0.26653646]
[1728108007138,0.001,62176.0,62175.0,0.21624567]
[1728108009861,0.001,62176.0,62175.0,0.15086765]
[1728108010353,0.001,62176.0,62175.0,0.21624499]
[1728108013275,0.001,62176.0,62175.0,0.21624496]
[1728108013467,0.001,62176.0,62175.0,0.21162272]
[1728108013771,0.001,62176.0,62175.0,0.11510125]
[1728108013973,0.0312,62176.0,62175.0,0.11510125]
[1728108014269,0.0312,62176.0,62175.0,0.08995596]
[1728108018571,0.392,62176.0,62175.0,0.08995596]
[1728108020466,0.392,62176.0,62175.0,0.02457865]
[1728108020669,0.392,62176.0,62175.0,0.07270946]
[1728108020980,0.392,62176.0,62175.0,0.02457865]
[1728108022171,0.448289,62176.0,62175.0,0.07270841]
[1728108022380,0.448289,62176.0,62175.0,0.02280971]
[1728108022772,0.448289,62176.0,62171.0,0.06416255]
[1728108023080,0.448289,62176.0,62170.0,0.0037]
[1728108023081,0.07,62172.0,62170.0,0.06416255]
[1728108023380,0.03,62171.0,62170.0,0.06416255]
[1728108023577,0.03,62171.0,62169.0,0.06416255]
[1728108024875,0.031,62171.0,62169.0,0.07116255]
[1728108025677,0.032,62171.0,62169.0,0.07116255]
[1728108026574,0.088293,62171.0,62169.0,0.07116255]
[1728108027281,0.088293,62171.0,62169.0,0.007]
[1728108030080,0.3608,62170.0,62169.0,0.007]
[1728108031383,0.3608,62170.0,62168.0,0.0225649]
[1728108031680,0.001,62170.0,62169.0,0.007]
[1728108031887,0.3618,62170.0,62169.0,0.007]
[1728108032379,0.3628,62170.0,62169.0,0.007]
[1728108032569,0.419094,62170.0,62169.0,0.007]
[1728108033173,0.419094,62170.0,62166.0,0.02322384]
[1728108033174,0.056296,62169.0,62168.0,0.008]